Cogmind - Beta 13 X1 @@@ ROGUE MODE // 2023.11.30 @ 19:29:30 Player: leiavoia Result: Destroyed by G-34 Mercenary with Small Laser Performance ------------- Evolutions (0) 0 Regions Visited (1) 200 Robots Destroyed (28) 140 Value Destroyed (625) 625 Prototype IDs (2) 40 Alien Tech Used (0) 0 Bonus (0) 0 TOTAL SCORE: 1005 Bonus ------- None Cogmind --------- Core Integrity 0/250 Matter 165/300 Energy 215/250 System Corruption 3% Temperature Cool (6) Movement Treading (160) Location -10/Materials Parts ------- > --- POWER (1) -------- Ion Engine > --- PROPULSION (2) --- Light Treads Light Treads > --- UTILITY (2) ------ Large Storage Unit Light Armor Plating > --- WEAPON (2) ------- Heavy EM Pulse Gun Grenade Launcher > --- INVENTORY (15) --- Light Treads Light Treads Light Treads Light Treads VTOL Module VTOL Module VTOL Module High-capacity Matter Pod (21) Improved Terrain Scanner Light Armor Plating Light Armor Plating Hacking Suite Heavy EM Pulse Gun Heavy EM Pulse Gun Heavy EM Pulse Gun Peak State ------------ > --- POWER ------------ Ion Engine > --- PROPULSION ------- Light Treads Light Treads > --- UTILITY ---------- Large Storage Unit Light Armor Plating > --- WEAPON ----------- Heavy EM Pulse Gun Grenade Launcher > --- INVENTORY -------- Light Treads Light Treads Light Treads Light Treads VTOL Module VTOL Module High-capacity Matter Pod Improved Terrain Scanner Light Armor Plating Light Armor Plating Hacking Suite Heavy EM Pulse Gun Heavy EM Pulse Gun Heavy EM Pulse Gun [Rating: 10] Favorites ----------- Power Ion Engine Engine Ion Engine Propulsion Aluminum Leg Treads Light Treads Leg Aluminum Leg Utility Small Storage Unit Device Seismic Detector Storage Small Storage Unit Protection Light Armor Plating Weapon Medium Laser Energy Gun Medium Laser Ballistic Gun Assault Rifle Launcher Grenade Launcher Build | -11 -10 ------- Run | Jun Mat Slots Evolved . | . . Power . | . . Propulsion . | . . Utility . | . . Weapon . | . . Parts Attached 22 | 2 20 Power 3 | . 3 Engine 3 | . 3 Core . | . . Reactor . | . . Propulsion 6 | . 6 Treads 2 | . 2 Leg 4 | . 4 Wheel . | . . Hover . | . . Flight . | . . Utility 6 | 1 5 Device 1 | 1 . Storage 3 | . 3 Processor . | . . Hackware . | . . Protection 2 | . 2 Artifact . | . . Weapon 7 | 1 6 Energy Gun 5 | 1 4 Energy Cannon . | . . Ballistic Gun . | . . Ballistic Cannon . | . . Launcher 2 | . 2 Special Weapon . | . . Impact Weapon . | . . Slashing Weapon . | . . Piercing Weapon . | . . Special Melee Weapon . | . . Unidentified Prototypes . | . . Corrupted Parts 1 | . 1 System Corruption 3 | . 3 Parts Lost 4 | . 4 Power 1 | . 1 Propulsion . | . . Utility . | . . Weapon 3 | . 3 Highest Loss Streak 2 | . 2 To Critical Strikes . | . . Average Slot Usage (%) 96 | . 96 Engine 13 | . 13 Treads 9 | . 9 Leg 18 | . 18 Device 9 | . 9 Storage 14 | . 14 Protection 4 | . 4 Energy Gun 18 | . 18 Ballistic Gun 4 | . 4 Launcher 1 | . 1 Naked Turns . | . . Heaviest Build 34 | 13 34 Greatest Support 40 | 20 40 Greatest Overweight (x) . | . . Average Overweight (x) . | . . Largest Inventory Capacity 15 | 8 15 Average Capacity 9 | 8 9 Most Carried 15 | 7 15 Average Carried 8 | 6 8 Final Capacity 15 | 8 15 Final Carried 15 | 7 15 Class Distribution -------------------- 73% | Mutant 26% | Scavenger-Mutant Dominant Class ---------------- Mutant | -10/Materials Resources | -11 -10 ----------- Run | Jun Mat Matter Collected 552 | 262 290 Remotely . | . . Salvage Created 870 | 134 736 Parts 66 | 16 50 Haulers Intercepted 1 | . 1 Recyclers Shooed 1 | . 1 Parts Field Recycled . | . . Retrieved Matter . | . . Parts Self-Destructed . | . . Prevented . | . . Kills | -11 -10 ------- Run | Jun Mat Combat Hostiles Destroyed 15 | . 15 Guns 13 | . 13 AOE 2 | . 2 Classes Destroyed 8 | 2 6 Worker 1 | . 1 Builder 2 | . 2 Tunneler 5 | 4 1 Hauler 1 | . 1 Recycler 1 | 1 . Operator 1 | . 1 Watcher 2 | . 2 Grunt 15 | . 15 Best Kill Streak 6 | 3 6 Combat Bots Only 4 | . 4 Max Kills in Single Turn 3 | 1 3 Gunslinging . | . . Exploded 1 | . 1 Melee . | . . Uniques/NPCs Destroyed . | . . Combat | -11 -10 -------- Run | Jun Mat Damage Taken 1159 | . 1159 Core 254 | . 254 Absorbed by Shields . | . . Core Remaining (%) 100 | 100 . Volleys Fired 80 | 14 66 Largest 2 | 2 2 Hottest 90 | 70 90 Shots Fired 150 | 28 122 Gun 143 | 28 115 Cannon . | . . Launcher 7 | . 7 Special . | . . Kinetic 36 | 14 22 Thermal 69 | 14 55 Explosive 7 | . 7 Electromagnetic 38 | . 38 Robot Hit Streak 17 | 7 17 Robot Miss Streak 3 | 1 3 Penetration Max . | . . Secondary Targets 2 | . 2 Max Gunslinging Chain 1 | . 1 Shots Hit Robots 98 | 14 84 Core Hits 47 | 6 41 Critical Kills . | . . Critical Parts Destroyed . | . . Critical Strikes 6 | 1 5 Burn 5 | 1 4 Corrupt 1 | . 1 Melee Attacks . | . . Impact . | . . Slashing . | . . Piercing . | . . Sneak Attacks . | . . Combat Hostiles . | . . Follow-up Attacks . | . . Damage Inflicted 1824 | 193 1631 Guns 1253 | 193 1060 Cannons . | . . Explosions 562 | . 562 Melee . | . . Ramming 9 | . 9 Kinetic 279 | 93 186 Thermal 825 | 100 725 Explosive 333 | . 333 Electromagnetic 378 | . 378 Impact . | . . Slashing . | . . Piercing . | . . Highest Corruption 3 | . 3 Average Corruption 3 | . 3 Corruption Purged . | . . Corruption Blocked . | . . Effects 6 | . 6 Message Errors 2 | . 2 Matter Fused 1 | . 1 Heat Flow Errors 1 | . 1 Energy Discharges 1 | . 1 Misfires 1 | . 1 Overload Shots . | . . Overflow Damage 26 | . 26 Projectiles . | . . Explosions 26 | . 26 Melee . | . . Knockbacks . | . . Impact . | . . Kinetic . | . . Secondary . | . . Self-Inflicted Damage 157 | . 157 Shots 5 | . 5 Rammed . | . . Targets Rammed 4 | . 4 Kicked 4 | . 4 Crushed . | . . Highest Temperature 425 | 63 425 Average Temperature 117 | 28 133 Received Heat Transfer 558 | . 558 Effects 9 | . 9 Shutdowns 3 | . 3 Energy Bleed 2 | . 2 Interference 1 | . 1 Matter Decay 2 | . 2 Short Circuit 1 | . 1 Siege Activations . | . . Robots Corrupted . | . . Combat Hostiles . | . . Parts Fried . | . . Impact Corruptions . | . . Robots Melted . | . . Combat Hostiles . | . . Parts Melted 2 | 1 1 Heat Transferred 2426 | 370 2056 Parts Sabotaged . | . . Parts Stolen . | . . Parts Stripped . | . . Power Chain Reactions 3 | . 3 Missiles Intercepted . | . . Alert | -11 -10 ------- Run | Jun Mat Peak Influence 332 | 25 332 Initial 16 | . 16 Average 173 | 11 191 Maximum Alert Level 1 | . 1 Low Security (%) 65 | 100 61 Level 1 35 | . 38 Level 2 . | . . Level 3 . | . . Level 4 . | . . Level 5 . | . . High Security . | . . Max Security . | . . Squads Dispatched 6 | . 6 Investigation 5 | . 5 Extermination . | . . Reinforcement 1 | . 1 Assault . | . . Garrison . | . . Intercept . | . . Searches Triggered . | . . Construction Impeded . | . . Haulers Reinforced . | . . Active Scanning Responses . | . . Cargo Convoy Interrupts . | . . Stealth | -11 -10 --------- Run | Jun Mat Distress Signals 1 | . 1 Communications Jammed . | . . Distress Signals . | . . Times Spotted 23 | . 23 Peak Tracking Total 4 | . 4 Tactical Retreats 1 | . 1 Traps | -11 -10 ------- Run | Jun Mat Traps Triggered 1 | . 1 Indirectly . | . . Trap Hack Attempts . | . . Triggered . | . . Disarmed . | . . Reprogrammed . | . . Reused . | . . Traps Extracted . | . . Installed . | . . Triggered . | . . Machines | -11 -10 ---------- Run | Jun Mat Machines Disabled . | . . Max in Single Turn . | . . Machines Repaired . | . . Machines Sabotaged . | . . Overloaded Fab Kills . | . . Hacking | -11 -10 --------- Run | Jun Mat Machines Accessed 6 | . 6 Terminals 5 | . 5 Fabricators . | . . Repair Stations . | . . Recycling Units 1 | . 1 Scanalyzers . | . . Garrison Access . | . . Total Hacks 21 | . 21 Successful 5 | . 5 Failed 16 | . 16 Catastrophic 3 | . 3 Database Lockouts . | . . Manual 12 | . 12 Terminals 18 | . 18 Fabricators . | . . Repair Stations . | . . Recycling Units 3 | . 3 Scanalyzers . | . . Garrison Access . | . . Terminal Hacks 4 | . 4 Part Schematic 2 | . 2 Robot Analysis 1 | . 1 Prototype ID Bank 1 | . 1 Fabricator Hacks . | . . Repair Station Hacks . | . . Recycling Unit Hacks . | . . Scanalyzer . | . . Garrison Access Hacks . | . . Unauthorized Hacks 1 | . 1 Terminals . | . . Fabricators . | . . Repair Stations . | . . Recycling Units 1 | . 1 Tunnel 1 | . 1 Scanalyzers . | . . Garrison Access . | . . Data Cores Recovered 1 | . 1 Used 1 | . 1 Hacking Detections 6 | . 6 Full Trace Events 4 | . 4 Feedback Events . | . . Feedback Blocked . | . . Robot Schematics Acquired . | . . Robots Built . | . . Authchips . | . . Time . | . . Total Robot Build Rating . | . . Part Schematics Acquired 2 | . 2 Parts Built . | . . Authchips . | . . Time . | . . Total Part Build Rating . | . . Parts Repaired . | . . Time . | . . Parts Recycled . | . . Recycled Matter . | . . Retrieved Matter . | . . Retrieved Components . | . . Parts Scanalyzed . | . . Part Schematics Acquired . | . . Parts Damaged . | . . Bothacking | -11 -10 ------------ Run | Jun Mat Used RIF Installer . | . . Robots Hacked . | . . Non-combat . | . . Combat . | . . Robot Hacks Applied . | . . Relay Couplers Released . | . . Fabnet Peak Effective % . | . . Robots Rewired . | . . Allies Hacked . | . . Hacks Repelled . | . . Allies | -11 -10 -------- Run | Jun Mat Total Allies . | . . Largest Group . | . . Highest-Rated Group . | . . Highest-Rated Ally . | . . Total Orders . | . . Ally Attacks . | . . Total Damage . | . . Kills . | . . Allies Corrupted . | . . Allies Melted . | . . Intel | -11 -10 ------- Run | Jun Mat Robot Analysis Total 1 | . 1 Derelict Logs Recovered . | . . Drone Launches . | . . Drone Recoveries . | . . Exploration | -11 -10 ------------- Run | Jun Mat Turns Passed 920 | 94 826 Spaces Moved 446 | 36 410 Core . | . . Treads 118 | . 118 Legs 328 | 36 292 Wheels . | . . Hover . | . . Flight . | . . Fastest Speed 120 | 120 120 Average Speed 130 | 120 131 Slowest Speed 160 | 120 160 Overloaded Moves . | . . Propulsion Burnouts . | . . Robots Hopped . | . . Cave-ins Triggered . | . . Exploration Rate (%) 37 | 5 69 Regions Visited 1 Branch Regions . Pre-discovered Areas 1 | . 1 Known Exits Taken . | . . Unknown Exits Taken 1 | 1 . Scrap Searched . | . . Spaces Dug 13 | . 13 Terrain Destroyed 41 | . 41 Melee . | . . Projectile . | . . AOE 41 | . 41 Terrain Rammed . | . . Walls Destroyed . | . . Machines Disabled . | . . Actions | -11 -10 --------- Run | Jun Mat Total 641 | 58 583 Wait 53 | 6 47 Move 445 | 35 410 Hop . | . . Pick Up 17 | 1 16 Fast Attach 5 | 1 4 Attach 3 | . 3 Detach 1 | . 1 Swap 14 | 1 13 Drop 19 | . 19 Fire 80 | 14 66 Melee . | . . Ram . | . . Kick 4 | . 4 Crush . | . . Escape Stasis . | . . Rewire . | . . Trap . | . . Miscellaneous . | . . Route ------- -11/Junkyard -10/Materials (discovered 3 exits: [*Mat x2] / [*Min]) History --------- Turn | Location | Event 24 | -11/Junkyard | Discovered new exit (range 3) 95 | -11/Junkyard | Entered Materials 182 | -10/Materials | Discovered new exit (range 7) 317 | -10/Materials | Build established: Mutant 415 | -10/Materials | Discovered new exit (range 16) 446 | -10/Materials | Core integrity fell below 50% 561 | -10/Materials | Discovered new exit (range 9) 730 | -10/Materials | Core integrity fell below 20% 921 | -10/Materials | Destroyed by G-34 Mercenary with Small Laser Last Messages --------------- 00745_ U-05 Engineer destroyed. 00747_ The unstable cave ceiling collapses. 00747_ Structural Scanner crushed. 00747_ Dropped Broken Sml. Laser. 00748_ Acquired 30 matter. 00751_ Acquired 15 matter. 00752_ Power failure, Ion Engine shutdown. 00764_ Dropped Med. Storage Unit. 00766_ W-16 Scout sends out distress signal. 00801_ Dropped Med. Storage Unit. 00833_ GV/QYJ07INSQ5DIG L9WJ/C#RJA0D|Z%#2& 00840_ G-34 Mercenary destroyed. 00847_ Acquired 28 matter. 00862_ Acquired Hvy. EM Pulse Gun. 00869_ System corrupted: Matter fused (-10). 00869_ Acquired Hvy. EM Pulse Gun. 00872_ Acquired VTOL Module. 00906_ Acquired 20 matter. 00917_ System corrupted: Energy discharge (-67). 00920_ T-07 Excavator destroyed. Map ----- +----------------------------------------------------+ | # # =# "" # | | ^ + / + T" # | | # # # "" # | | ##### # # # # | | #???##################### ####### | | ######################## #????? | | =* !#????? | | == #????? | | != #????? | | ####### ###+######### #????? | | ?????# # ####???# ##????? | | ??????# # """ #????#### #????? | | ????????# # """ ###### # ^ #????? | | ????????# # """ ## # #?????? | | ????????# # ## # ##????? | | ????????# # ## # #????? | | ????????# # ## * # #????? | | ????????# ##### # %= # ##????? | | ????????# =| # #####?? | | ????????# *g !# ==#?? | | ????????# T [ # =#?? | | ????????# !! # # =#?? | | ????????# # # =#?? | | ????????# # # #?? | | ????????# # # #?? | | ????????# # @# #####?? | | ??????? + ##+##### #?????? | | ????????# ## #???# #?????? | | ????????# ######### ##### #?????? | | ??????? ????????# ## #= #?????? | | ?????? ????????# [ ! #?????? | | ?????" ^ ????????####### ####??? | | ?????"" ????????????### #??? | | ?????" ^ ??????????????#! !#??? | | ?????"" ??????????????##!!!!##??? | | ??????? ???????????????######???? | | ????????????????????????????????????? | | ????????????????????????????????????? | | ????????????????????????????????????? | | ????????????????????????????????????? | | ????????????????????????????????????? | | ????????????????????????????????????? | | ????????????????????????????????????? | | ????????????????????????????????????? | | ????????????????????????????????????? | | ????????????????????????????????????? | | ????????????????????????????????????? | | ????????????????????????????????????? | | ????????????????????????????????????? | | ????????????????????????????????????? | +----------------------------------------------------+ Best States ------------- Heat Dissipation 25 Energy Generation 10 Energy Capacity 250 Matter Stores 300 Matter Capacity 300 Sight Range 16 Terrain Scan Density 10 Armor Coverage 150 Evasion (%) 55 Recoil Reduction 2 Item Schematics ----------------- Huge Storage Unit | -10/Materials | Hacked Cargo Storage Unit | -10/Materials | Hacked Robot Schematics ------------------ None Fabricated ------------ Nothing Alien Tech Used ----------------- None Achievements -------------- None Challenges ------------ None Game ------ Seed SegregatorSignalDetector Manual? 0 Play Time 00:10:24 Cumulative 1040.3 hours Start 2023.11.30 @ 19:20:05 End 2023.11.30 @ 19:29:30 Sessions 1 Manual Loads 0 Difficulty Rogue Special Mode None Game No. 222 Rogue 190 Adventurer 31 Explorer 1 Win Type - Total 47 Types 33/0/6/7/0/0/1/0/0 Lore% 84 Gallery% 89 Achievement% 80 Wizard Run 0 Options --------- ASCII 0 Keyboard 0 Movement Arrows Keybinds 0 Fullscreen 1 Font 20/Terminus Map View 66x50 Tactical HUD 1 Map Filters NONE Filters NONE Steam 1 RUN: bf959f24-521a-4e4d-b5c1-94927c3d2a42